fUST/lending_fUST_20250827
["ID","MTS","AMOUNT","RATE_DAILY","PERIOD"]
[381550866,1756278862579,4756.42698694,0.00021627,2]
[381550908,1756279039036,4647.73127771,0.000199,2]
[381550909,1756279039191,4647.7312777,0.00021627,2]
[381550911,1756279063308,666.991178,0.00031508,120]
[381550913,1756279110446,-5000.0,0.0002312,2]
[381550914,1756279110618,-1209.07928214,0.000232,2]
[381550915,1756279110649,-1200.0,0.00023352,2]
[381550916,1756279110682,-300.0,0.00023352,2]
[381550917,1756279110714,-220.50174971,0.00023352,2]
[381550918,1756279110745,-205.37293729,0.00023352,2]
[381550919,1756279110947,-4647.7312777,0.00023353,2]
[381550920,1756279111138,-1396.434863,0.00023441,2]
[381550921,1756279111169,-397.4250688,0.00023703,2]
[381550922,1756279111200,-261.89340448,0.00023922,2]
[381550923,1756279111230,-300.0,0.00024186,2]
[381550924,1756279111261,-1152.0,0.00024186,2]
[381550925,1756279111610,-4083.3469885,0.00024187,2]
[381550926,1756279111768,-1833.316023,0.00024187,2]
[381550927,1756279111802,-2174.4950791,0.00024747,2]
[381550928,1756279112121,-2344.0441517,0.00024747,2]
[381550929,1756279112332,-4688.0883034,0.00024747,2]
[381550930,1756279112460,-623.8333932,0.00024747,2]
[381550931,1756279112492,-3247.56802275,0.000249,2]
[381550932,1756279112672,-500.0,0.00024901,2]
[381550933,1756279112681,-134.1919631,0.00024901,2]
[381550934,1756279112752,-365.8080369,0.00024901,2]
[381550935,1756279112787,-500.0,0.00024901,2]
[381550936,1756279112821,-500.0,0.00024901,2]
[381550937,1756279112854,-1938.88459356,0.00024902,2]
[381550938,1756279112975,-3390.62473908,0.00024902,2]
[381550939,1756279117482,-273.4887462,0.00024901,2]
[381550940,1756279117514,-2174.3514203,0.00024921,2]
[381550941,1756279117670,-5104.329667,0.0002499,2]
[381550942,1756279117713,-3383.52119211,0.0002499,2]
[381550943,1756279117740,-3232.96761578,0.0002499,2]
[381550944,1756279127208,10000.01,0.00024987,2]
[381550945,1756279127233,10000.01,0.00024987,2]
[381550946,1756279127256,10000.01,0.00024987,2]
[381550947,1756279127279,10000.01,0.00024987,2]
[381550948,1756279127302,10000.01,0.00024987,2]
[381550949,1756279127337,10000.01,0.00024987,2]
[381550950,1756279127362,10000.01,0.00024987,2]
[381550951,1756279127386,10000.01,0.00024987,2]
[381550952,1756279150539,-300.0,0.00023351,2]
[381550953,1756279150571,-500.0,0.00023352,2]
[381550954,1756279150606,-500.0,0.00023352,2]
[381550955,1756279150637,-500.0,0.00023352,2]
[381550956,1756279150669,-500.0,0.00023352,2]
[381550957,1756279150700,-500.0,0.00023352,2]
[381550958,1756279150732,-500.0,0.00023352,2]
[381550959,1756279150766,-500.0,0.00023352,2]
[381550960,1756279150799,-500.0,0.00023352,2]
[381550961,1756279150835,-485.19451005,0.00023352,2]
[381550962,1756279151013,-500.0,0.00023352,2]
[381550963,1756279151047,-500.0,0.00023352,2]
[381550964,1756279151080,-500.0,0.00023352,2]
[381550965,1756279151113,-500.0,0.00023352,2]
[381550966,1756279151146,-500.0,0.00023352,2]
[381550967,1756279151178,-525.0,0.00023352,2]
[381550968,1756279151209,-500.0,0.00023352,2]
[381550969,1756279151241,-475.0,0.00023352,2]
[381550970,1756279151271,-350.87524377,0.00023352,2]
[381550971,1756279151302,-227.83122952,0.00023352,2]
[381550972,1756279151332,-272.16877048,0.00023352,2]
[381550973,1756279152589,-798.25951246,0.00024003,2]
[381550974,1756279170538,-500.0,0.00023352,2]
[381550975,1756279170572,-500.0,0.00023352,2]
[381550976,1756279170602,-500.0,0.00023352,2]
[381550977,1756279170632,-500.0,0.00023352,2]
[381550978,1756279170663,-500.0,0.00023352,2]
[381550979,1756279170693,-500.00000001,0.00023352,2]
[381550980,1756279170727,-500.0,0.00023352,2]
[381550981,1756279170758,-613.92061476,0.00023352,2]
[381550982,1756279170788,-500.0,0.00023352,2]
[381550983,1756279170821,-167.95995062,0.00023352,2]
[381550984,1756279171038,-500.0,0.00023352,2]
[381550985,1756279171071,-500.0,0.00023352,2]
[381550986,1756279171104,-500.0,0.00023352,2]
[381550987,1756279171134,-183.16591915,0.00023352,2]
[381550988,1756279171167,-500.0,0.00023352,2]
[381550989,1756279171200,-504.64478632,0.00023352,2]
[381550990,1756279171232,-500.0,0.00023352,2]
[381550991,1756279171266,-500.0,0.00023352,2]
[381550992,1756279171296,-227.83122952,0.00023352,2]
[381550993,1756279171329,-500.0,0.00023352,2]
[381550994,1756279171362,-500.0,0.00023352,2]
[381550995,1756279171485,-1724.33,0.00023993,3]
[381550996,1756279171517,-1401.41,0.00023993,10]
[381550997,1756279171548,-862.16,0.00023993,3]
[381550998,1756279171954,-668.72613002,0.00024003,2]
[381550999,1756279171971,-2024.21,0.00024003,2]
[381551000,1756279172012,-10000.01,0.00024003,2]
[381551001,1756279172055,-10000.01,0.00024003,2]
[381551002,1756279172174,-10000.01,0.00024003,2]
[381551003,1756279172200,-10000.01,0.00024003,2]
[381551004,1756279172246,-10000.01,0.00024003,2]
[381551005,1756279172686,-10000.01,0.00024003,2]
[381551006,1756279172719,-10000.01,0.00024003,2]
[381551007,1756279180634,-10000.01,0.00024003,2]
[381551008,1756279180854,-10000.01,0.00024003,2]
[381551009,1756279181059,-10000.01,0.00024003,2]
[381551010,1756279181249,-10000.01,0.00024003,2]
[381551011,1756279181422,-10000.01,0.00024003,2]
[381551012,1756279181654,-10000.01,0.00024003,2]
[381551013,1756279181811,-10000.01,0.00024003,2]
[381551014,1756279181953,-10000.01,0.00024003,2]
[381551015,1756279182159,-10000.01,0.00024003,2]
[381551016,1756279182376,-4855.22619568,0.00024003,2]
[381551017,1756279182408,-289.55760864,0.00024003,2]
[381551018,1756279210888,-300.0,0.00023351,2]
[381551019,1756279210923,-300.0,0.00023351,2]
[381551020,1756279210961,-1200.0,0.00023351,2]
[381551021,1756279211000,-500.0,0.00023352,2]
[381551022,1756279211036,-525.0,0.00023352,2]
[381551023,1756279211069,-460.99932234,0.00023352,2]
[381551024,1756279211106,-500.0,0.00023352,2]
[381551025,1756279211142,-500.0,0.00023352,2]
[381551026,1756279211176,-500.0,0.00023352,2]
[381551027,1756279211248,-500.0,0.00023352,2]
[381551028,1756279211282,-500.0,0.00023352,2]
[381551029,1756279211316,-500.0,0.00023352,2]
[381551030,1756279211355,-500.0,0.00023352,2]
[381551031,1756279211390,-500.0,0.00023352,2]
[381551032,1756279211425,-500.0,0.00023352,2]
[381551033,1756279211459,-500.0,0.00023352,2]
[381551034,1756279211492,-500.0,0.00023352,2]
[381551035,1756279211525,-500.0,0.00023352,2]
[381551036,1756279211560,-500.0,0.00023352,2]
[381551037,1756279211767,-500.0,0.00023352,2]
[381551038,1756279211801,-500.0,0.00023352,2]
[381551039,1756279211838,-500.0,0.00023352,2]
[381551040,1756279211875,-176.00673711,0.00023352,2]
[381551041,1756279211910,-500.0,0.00023352,2]
[381551042,1756279211946,-500.0,0.00023352,2]
[381551043,1756279211980,-500.0,0.00023352,2]
[381551044,1756279212014,-500.0,0.00023352,2]
[381551045,1756279212047,-500.0,0.00023352,2]
[381551046,1756279212080,-500.0,0.00023352,2]
[381551047,1756279212114,-147.99652578,0.00023352,2]
[381551048,1756279212293,-352.00347422,0.00023352,2]
[381551049,1756279212332,-500.0,0.00023352,2]
[381551050,1756279212367,-500.0,0.00023352,2]
[381551051,1756279212400,-500.0,0.00023352,2]
[381551052,1756279212430,-500.0,0.00023352,2]
[381551053,1756279212460,-570.90614971,0.00023352,2]
[381551054,1756279212490,-500.0,0.00023352,2]
[381551055,1756279212520,-500.0,0.00023352,2]
[381551056,1756279212551,-500.0,0.00023352,2]
[381551057,1756279212581,-500.0,0.00023352,2]
[381551058,1756279213130,-500.0,0.00023352,2]
[381551059,1756279213163,-500.0,0.00023352,2]
[381551060,1756279213195,-178.31216846,0.00023352,2]
[381551061,1756279213226,-500.0,0.00023352,2]
[381551062,1756279213257,-159.80087816,0.00023352,2]
[381551063,1756279213288,-500.0,0.00023352,2]
[381551064,1756279213320,-578.10227192,0.00023352,2]
[381551065,1756279213354,-255.11116566,0.00023352,2]
[381551066,1756279213388,-500.0,0.00023352,2]
[381551067,1756279213426,-434.53748863,0.00023352,2]
[381551068,1756279213457,-160.0,0.00024003,2]
[381551069,1756279213490,-500.0,0.00024073,2]
[381551070,1756279213522,-116.64087337,0.00024875,2]
[381551071,1756279213627,-235.0003076,0.00024875,2]
[381551072,1756279213662,-500.0,0.00024901,2]
[381551073,1756279213697,-500.0,0.00024901,2]
[381551074,1756279213733,-500.0,0.00024901,2]
[381551075,1756279213769,-500.0,0.00024901,2]
[381551076,1756279213805,-500.0,0.00024901,2]
[381551077,1756279213840,-500.0,0.00024901,2]
[381551078,1756279213876,-500.0,0.00024901,2]
[381551079,1756279213912,-500.0,0.00024901,2]
[381551080,1756279213946,-500.0,0.00024901,2]
[381551081,1756279213982,-191.52355452,0.00024901,2]
[381551082,1756279214304,-151.0,0.000234,2]
[381551083,1756279214341,-500.0,0.00024901,2]
[381551084,1756279214376,-500.0,0.00024901,2]
[381551085,1756279214411,-500.0,0.00024901,2]
[381551086,1756279214447,-500.0,0.00024901,2]
[381551087,1756279214482,-500.0,0.00024901,2]
[381551088,1756279214518,-500.0,0.00024901,2]
[381551089,1756279214554,-500.0,0.00024901,2]
[381551090,1756279214589,-500.0,0.00024901,2]
[381551091,1756279214623,-500.0,0.00024901,2]
[381551092,1756279214660,-185.11968237,0.00024901,2]
[381551093,1756279214834,-327.77063526,0.00024901,2]
[381551094,1756279217096,-338.48583028,0.00024901,2]
[381551095,1756279217128,-500.0,0.00024901,2]
[381551096,1756279217146,-512.89031763,0.00024901,2]
[381551097,1756279217180,-327.77063526,0.00024901,2]
[381551098,1756279217201,-9344.46872948,0.00024901,2]
[381551099,1756279217320,-10000.01,0.00024901,2]
[381551100,1756279217378,-10000.01,0.00024901,2]
[381551101,1756279220332,4391.35757324,0.000199,2]
[381551102,1756279220451,4391.35757315,0.00021627,2]
[381551103,1756279250698,-500.0,0.00023352,2]
[381551104,1756279250736,-500.0,0.00023352,2]
[381551105,1756279250772,-372.29893105,0.00023352,2]
[381551106,1756279251030,-500.0,0.00023352,2]
[381551107,1756279251069,-229.38030725,0.00023352,2]
[381551108,1756279251107,-500.0,0.00023352,2]
[381551109,1756279251144,-500.0,0.00023352,2]
[381551110,1756279251179,-500.0,0.00023352,2]
[381551111,1756279251215,-500.0,0.00023352,2]
[381551112,1756279251250,-500.0,0.00023352,2]
[381551113,1756279251287,-296.6515234,0.00023352,2]
[381551114,1756279251436,-203.3484766,0.00023352,2]
[381551115,1756279251472,-500.0,0.00023352,2]
[381551116,1756279251509,-500.0,0.00023352,2]
[381551117,1756279251544,-500.0,0.00023352,2]
[381551118,1756279251580,-500.0,0.00023352,2]
[381551119,1756279251615,-500.0,0.00023352,2]
[381551120,1756279251651,-500.0,0.00023352,2]
[381551121,1756279251686,-500.0,0.00023352,2]
[381551122,1756279251722,-500.0,0.00023352,2]
[381551123,1756279251760,-500.0,0.00023352,2]
[381551124,1756279251796,-93.3130468,0.00023352,2]
[381551126,1756279252256,-406.6869532,0.00023352,2]
[381551127,1756279252288,-500.0,0.00023352,2]
[381551128,1756279252322,-500.0,0.00023352,2]
[381551129,1756279252359,-500.0,0.00023352,2]
[381551130,1756279252396,-500.0,0.00023352,2]
[381551131,1756279252430,-468.90473445,0.00023352,2]
[381551132,1756279252468,-500.0,0.00023352,2]
[381551133,1756279252504,-500.0,0.00023352,2]
[381551134,1756279252540,-500.0,0.00023352,2]
[381551135,1756279252576,-500.0,0.00023352,2]
[381551136,1756279252806,-500.0,0.00023352,2]
[381551137,1756279252843,-500.0,0.00023352,2]
[381551138,1756279252881,-500.0,0.00023352,2]
[381551139,1756279252919,-500.0,0.00023352,2]
[381551140,1756279252955,-500.0,0.00023352,2]
[381551141,1756279252993,-500.0,0.00023352,2]
[381551142,1756279253029,-500.0,0.00023352,2]
[381551143,1756279253065,-500.0,0.00023352,2]
[381551144,1756279253101,-255.80383184,0.00023352,2]
[381551145,1756279253136,-500.0,0.00023352,2]
[381551146,1756279253348,-500.0,0.00023352,2]
[381551147,1756279253379,-160.0,0.00023352,2]
[381551148,1756279253422,-4288.65242685,0.00023353,2]
[381551149,1756279253611,-102.7051463,0.00023353,2]
[381551150,1756279253646,-748.62906973,0.00024901,2]
[381551151,1756279253869,-748.62906973,0.00024901,2]
[381551152,1756279253911,-748.62906973,0.00024901,2]
[381551153,1756279253949,-748.62906973,0.00024901,2]
[381551154,1756279253986,-748.62906973,0.00024901,2]
[381551155,1756279254021,-748.62906973,0.00024901,2]
[381551156,1756279254057,-62.42180091,0.00024901,2]
[381551157,1756279254112,-686.20726882,0.00024901,2]
[381551158,1756279254264,-1212.64263106,0.00024901,2]
[381551159,1756279254462,-2425.28526212,0.00024901,2]
[381551160,1756279254618,-4850.57052424,0.00024901,2]
[381551161,1756279255574,-298.86895152,0.00024901,2]
[381551162,1756279255583,-2055.32506361,0.00024921,2]
[381551163,1756279255619,-8787.36736894,0.00024921,2]
[381551164,1756279255649,-4033.96741359,0.00024921,2]
[381551165,1756279255658,-574.83,0.00024977,3]
[381551166,1756279255668,-287.46,0.00024977,3]
[381551167,1756279255677,-862.38,0.00024977,3]
[381551168,1756279255686,-1816.08732429,0.00024987,2]
[381551169,1756279255814,-5149.43947576,0.00024987,2]
[381551170,1756279313278,5000.0,0.0002205,2]
[381551171,1756279330859,-5000.0,0.00023117,2]
[381551172,1756279331042,-300.0,0.00023351,2]
[381551173,1756279331076,-1200.0,0.00023351,2]
[381551174,1756279331111,-500.0,0.00023352,2]
[381551175,1756279331144,-500.0,0.00023352,2]
[381551176,1756279331178,-500.0,0.00023352,2]
[381551177,1756279331212,-500.0,0.00023352,2]
[381551178,1756279331244,-500.0,0.00023352,2]
[381551179,1756279331276,-500.0,0.00023352,2]
[381551180,1756279331310,-500.0,0.00023352,2]
[381551181,1756279331731,-500.0,0.00023352,2]
[381551182,1756279331766,-500.0,0.00023352,2]
[381551183,1756279331800,-546.08245339,0.00023352,2]
[381551184,1756279331833,-489.40529147,0.00023352,2]
[381551185,1756279331867,-500.0,0.00023352,2]
[381551186,1756279331900,-500.0,0.00023352,2]
[381551187,1756279331934,-468.90473445,0.00023352,2]
[381551188,1756279331966,-500.0,0.00023352,2]
[381551189,1756279331999,-500.0,0.00023352,2]
[381551190,1756279332034,-265.17572711,0.00023352,2]
[381551191,1756279332067,-21.61003757,0.00023352,2]
[381551192,1756279332214,-417.65351202,0.00023352,2]
[381551193,1756279332248,-220.87468772,0.00023352,2]
[381551194,1756279332282,-500.0,0.00023352,2]
[381551195,1756279332314,-500.0,0.00023352,2]
[381551196,1756279332351,-500.0,0.00023352,2]
[381551197,1756279332392,-500.0,0.00023352,2]
[381551198,1756279332428,-500.0,0.00023352,2]
[381551199,1756279332464,-500.0,0.00023352,2]
[381551200,1756279332503,-500.0,0.00023352,2]
[381551201,1756279332540,-500.0,0.00023352,2]
[381551202,1756279332576,-222.95360052,0.00023352,2]
[381551203,1756279332662,-277.04639948,0.00023352,2]
[381551204,1756279332696,-255.80383184,0.00023352,2]
[381551205,1756279332729,-500.0,0.000234,2]
[381551206,1756279332764,-822.388805,0.00023947,2]
[381551207,1756279332797,-1000.0,0.00023948,2]
[381551208,1756279332831,-1500.0,0.00024496,2]
[381551209,1756279332864,-162.06972335,0.00024708,5]
[381551210,1756279333189,-3382.88335697,0.0002489,2]
[381551211,1756279333244,-500.0,0.0002492,2]
[381551212,1756279333298,-500.0,0.0002492,2]
[381551213,1756279333349,-500.0,0.0002492,2]
[381551214,1756279334652,-6955.44959856,0.00024987,2]
[381551215,1756279334708,-10000.01,0.00024987,2]
[381551216,1756279334773,-10000.01,0.00024987,2]
[381551219,1756279334948,-10000.01,0.00024987,2]
[381551238,1756279396497,3952.22181598,0.000199,2]
[381551239,1756279396643,3952.22181583,0.00021627,2]
[381551248,1756279477468,978.0,0.0002205,2]
[381551265,1756279537930,5000.0,0.0002205,2]
[381551271,1756279554004,5000.0,0.0002205,2]
[381551273,1756279569784,5000.0,0.0002205,2]
[381551279,1756279580813,3688.74036148,0.000199,2]
[381551280,1756279580987,3688.74036144,0.00021627,2]
[381551281,1756279585275,2622.52927708,0.0002205,2]
[381551282,1756279585305,2377.47072292,0.0002205,2]
[381551283,1756279600734,5000.0,0.0002205,2]
[381551289,1756279611143,-155.15522045,0.000221,2]
[381551291,1756279616353,5000.0,0.0002205,2]
[381551294,1756279625548,976.850886,0.00013699,2]
[381551295,1756279625766,976.850886,0.00020187,2]
[381551298,1756279632604,5000.0,0.0002205,2]
[381551301,1756279672127,251.66077803,0.000209,2]
[381551302,1756279672189,5085.1157243,0.00018,2]
[381551321,1756279715006,1665.27,0.0002205,2]
[381551322,1756279719454,202.55159482,0.0002,7]
[381551327,1756279721400,342.59160489,0.0002,2]
[381551328,1756279722019,583.84642933,0.000149,2]
[381551329,1756279722269,1000.0,0.0001,2]
[381551330,1756279723193,7871.02037096,0.00018,2]
[381551331,1756279723220,10000.01,0.00018,2]
[381551332,1756279723247,10000.01,0.00018,2]
[381551333,1756279723275,1575.62820989,0.00018,2]
[381551334,1756279725893,309.0,0.000215,2]
[381551335,1756279726121,4347.29505665,0.0002,2]
[381551336,1756279726598,151.93706804,0.00021,2]
[381551337,1756279727056,3616.14966542,0.0002,2]
[381551338,1756279727083,2309.58752244,0.0002,2]
[381551343,1756279744045,5000.0,0.0002205,2]
[381551346,1756279756419,-275.12,0.000221,2]
[381551347,1756279756451,-421.25277125,0.000221,2]
[381551348,1756279756486,-587.17800107,0.00022426,2]
[381551349,1756279756516,-293.58900053,0.00022653,2]
[381551350,1756279756760,-2005.00137845,0.00023,2]
[381551351,1756279756933,-5000.0,0.0002312,2]
[381551352,1756279757028,-300.0,0.00023351,2]
[381551353,1756279757063,-489.24619687,0.00023352,2]
[381551354,1756279757096,-184.4223198,0.00023352,2]
[381551355,1756279757132,-500.0,0.00023352,2]
[381551356,1756279757166,-261.94395999,0.00023352,2]
[381551357,1756279757200,-500.0,0.00023352,2]
[381551358,1756279757234,-500.0,0.00023352,2]
[381551359,1756279757268,-500.0,0.00023352,2]
[381551360,1756279757305,-500.0,0.00023352,2]
[381551361,1756279757338,-500.0,0.00023352,2]
[381551362,1756279757373,-442.30381121,0.00023352,2]
[381551363,1756279757407,-144.17742426,0.00023352,2]
[381551364,1756279757511,-355.82257574,0.00023352,2]
[381551365,1756279757544,-500.0,0.00023352,2]
[381551366,1756279757579,-500.0,0.00023352,2]
[381551367,1756279757618,-500.0,0.00023352,2]
[381551368,1756279757651,-448.86426194,0.00023352,2]
[381551369,1756279757684,-500.0,0.00023352,2]
[381551370,1756279757717,-355.30464589,0.00023352,2]
[381551371,1756279757754,-500.0,0.00023352,2]
[381551372,1756279757790,-500.0,0.00023352,2]
[381551373,1756279757823,-500.0,0.00023352,2]
[381551374,1756279757860,-180.02703286,0.00023352,2]
[381551375,1756279758161,-319.97296714,0.00023352,2]
[381551376,1756279758198,-160.625,0.00023352,2]
[381551377,1756279758232,-500.0,0.00023352,2]
[381551378,1756279758269,-500.0,0.00023352,2]
[381551379,1756279758303,-500.0,0.00023352,2]
[381551380,1756279758338,-500.0,0.00023352,2]
[381551381,1756279758374,-500.0,0.00023352,2]
[381551382,1756279758410,-500.0,0.00023352,2]
[381551383,1756279758448,-500.0,0.00023352,2]
[381551384,1756279758488,-500.0,0.00023352,2]
[381551385,1756279758530,-461.33472374,0.00023352,2]
[381551386,1756279758825,-500.0,0.00023352,2]
[381551387,1756279758863,-500.0,0.00023352,2]
[381551388,1756279758898,-500.0,0.00023352,2]
[381551389,1756279758933,-225.0,0.00023352,2]
[381551390,1756279758969,-500.0,0.00023352,2]
[381551391,1756279759004,-500.0,0.00023352,2]
[381551392,1756279759040,-500.0,0.00023352,2]
[381551393,1756279759076,-500.0,0.00023352,2]
[381551394,1756279759112,-500.0,0.00023352,2]
[381551395,1756279759313,-500.0,0.00023352,2]
[381551396,1756279759348,-50.01,0.00023352,2]
[381551397,1756279759528,-449.99,0.00023352,2]
[381551398,1756279759565,-500.0,0.00023352,2]
[381551399,1756279759600,-500.0,0.00023352,2]
[381551400,1756279759635,-445.625,0.00023352,2]
[381551401,1756279759668,-500.0,0.00023352,2]
[381551402,1756279759703,-500.0,0.00023352,2]
[381551403,1756279759738,-500.0,0.00023352,2]
[381551404,1756279759772,-539.77835745,0.00023352,2]
[381551405,1756279759806,-500.0,0.00023352,2]
[381551406,1756279759843,-500.0,0.00023352,2]
[381551407,1756279760161,-500.0,0.00023352,2]
[381551408,1756279760196,-500.0,0.00023352,2]
[381551409,1756279760232,-500.0,0.00023352,2]
[381551410,1756279760268,-500.0,0.00023352,2]
[381551411,1756279760308,-2311.26963856,0.00023353,2]
[381551412,1756279760404,-1377.47072288,0.00023353,2]
[381551413,1756279760437,-169.80466491,0.00023747,76]
[381551414,1756279760472,-1200.0,0.00023846,2]
[381551415,1756279760507,-304.15494987,0.00023847,2]
[381551416,1756279760544,-500.0,0.00023847,2]
[381551417,1756279760583,-500.0,0.00023847,2]
[381551418,1756279760622,-500.0,0.00023847,2]
[381551419,1756279760660,-397.14932468,0.00023847,2]
[381551420,1756279760933,-102.85067532,0.00023847,2]
[381551421,1756279760971,-500.0,0.00023847,2]
[381551422,1756279761011,-500.0,0.00023847,2]
[381551423,1756279761048,-500.0,0.00023847,2]
[381551424,1756279761086,-500.0,0.00023847,2]
[381551425,1756279761126,-500.0,0.00023847,2]
[381551426,1756279761164,-500.0,0.00023847,2]
[381551427,1756279761203,-500.0,0.00023847,2]
[381551428,1756279761240,-500.0,0.00023847,2]
[381551429,1756279761278,-500.0,0.00023847,2]
[381551430,1756279761315,-294.30864936,0.00023847,2]
[381551432,1756279766866,-179.3728642,0.00022553,2]
[381551433,1756279766902,-205.69135064,0.00023847,2]
[381551434,1756279766939,-500.0,0.00023847,2]
[381551435,1756279766974,-500.0,0.00023847,2]
[381551436,1756279767009,-500.0,0.00023847,2]
[381551437,1756279767043,-500.0,0.00023847,2]
[381551438,1756279767077,-500.0,0.00023847,2]
[381551439,1756279767113,-550.35551232,0.00023847,2]
[381551440,1756279767149,-500.0,0.00023847,2]
[381551441,1756279767188,-500.0,0.00023847,2]
[381551442,1756279767228,-500.0,0.00023847,2]
[381551443,1756279767330,-500.0,0.00023847,2]
[381551444,1756279767370,-168.23079736,0.00023847,2]
[381551445,1756279767401,-28.59899968,0.00023848,2]
[381551446,1756279767588,-1393.65959408,0.00023848,2]
[381551447,1756279768046,-2787.31918816,0.00023848,2]
[381551448,1756279768226,-4425.37162368,0.00023848,2]
[381551449,1756279768430,-2155.34950298,0.00024,60]
[381551450,1756279768464,-369.84748596,0.00024108,2]
[381551451,1756279768535,-5000.0,0.00022327,2]
[381551452,1756279768986,-421.25277125,0.00023848,2]
[381551454,1756279783182,3319.86632547,0.000199,2]
[381551455,1756279783317,3319.86632529,0.00021627,2]
[381551456,1756279783646,3360.27734924,0.0002205,2]
[381551457,1756279783677,1639.72265076,0.0002205,2]
[381551459,1756279792028,288.09008906,0.0002205,2]
[381551460,1756279801922,5000.0,0.0002205,2]
[381551462,1756279818214,5000.0,0.0002205,2]
[381551486,1756279832400,-183.41,0.00022241,2]
[381551488,1756279832409,-3319.86632529,0.00023353,2]
[381551490,1756279832422,-613.05136465,0.00024108,2]
[381551492,1756279832431,-300.0,0.00024459,2]
[381551494,1756279832441,-696.0,0.00024459,2]
[381551496,1756279832451,-3557.99740614,0.0002446,2]
[381551500,1756279832481,-10563.10456076,0.0002446,2]
[381551502,1756279832491,-373.6073822,0.00024471,2]
[381551504,1756279832500,-177.01210144,0.00024637,2]
[381551506,1756279832509,-155.03639077,0.000247,2]
[381551508,1756279832520,-500.0,0.00024773,2]
[381551510,1756279832530,-500.0,0.00024773,2]
[381551512,1756279832539,-500.0,0.00024773,2]
[381551514,1756279832550,-500.0,0.00024773,2]
[381551516,1756279832559,-212.64944664,0.00024773,2]
[381551518,1756279832568,-500.0,0.00024773,2]
[381551520,1756279832577,-500.0,0.00024773,2]
[381551522,1756279832587,-2081.87378226,0.00024774,2]
[381551524,1756279832596,-212.90846491,0.00024799,2]
[381551526,1756279832605,-500.0,0.00024799,2]
[381551528,1756279832614,-500.0,0.00024799,2]
[381551530,1756279832624,-500.0,0.00024799,2]
[381551532,1756279832634,-151.0,0.000248,8]
[381551534,1756279832643,-150.0921044,0.000248,2]
[381551536,1756279832653,-8491.72357399,0.000248,2]
[381551538,1756279832665,-7783.718725,0.000248,2]
[381551540,1756279832676,-8891.78395398,0.000248,2]
[381551542,1756279832687,-1480.000025,0.000248,2]
[381551545,1756279832702,-858.95344586,0.000248,2]
[381551547,1756279832712,-836.30325091,0.000248,2]
[381551549,1756279832723,-451.04436464,0.000248,2]
[381551664,1756279834592,5000.0,0.0002205,2]
[381551691,1756279838235,-500.0,0.00024799,2]
[381551692,1756279838245,-500.0,0.00024799,2]
[381551693,1756279838254,-253.01041677,0.00024799,2]
[381551694,1756279838263,-500.0,0.00024799,2]
[381551695,1756279838273,-21206.47266062,0.000248,2]
[381551696,1756279838283,-2530.31055081,0.00024892,2]
[381551697,1756279838293,-9917.77323076,0.000249,2]
[381551698,1756279838303,-19983.9192534,0.000249,2]
[381551699,1756279838313,-500.0,0.00024973,2]
[381551700,1756279838322,-520.92936452,0.00024973,2]
[381551702,1756279838331,-502.14782863,0.00024973,2]
[381551704,1756279838341,-500.0,0.00024973,2]
[381551706,1756279838350,-19983.9192534,0.00024977,2]
[381551708,1756279838359,-150.0921044,0.00024977,2]